fUST/lending_fUST_20250715
["ID","MTS","AMOUNT","RATE_DAILY","PERIOD"]
[372210895,1752551447151,-461.76265842,0.00021917,3]
[372210897,1752551447160,-460.0,0.00021917,3]
[372210899,1752551447169,-461.91449237,0.00021917,3]
[372210901,1752551447178,-460.0,0.00021917,3]
[372210903,1752551447188,-460.0,0.00021917,3]
[372210905,1752551447197,-151.0,0.00021917,2]
[372210907,1752551447207,-460.0,0.00021917,3]
[372210909,1752551447217,-151.0,0.00021917,2]
[372210911,1752551447226,-151.0,0.00021917,2]
[372210913,1752551447235,-151.0,0.00021917,2]
[372210915,1752551447244,-151.0,0.00021917,2]
[372210917,1752551447254,-460.0,0.00021917,3]
[372210919,1752551447264,-463.75279521,0.00021917,3]
[372210921,1752551447276,-460.0,0.00021917,3]
[372210923,1752551447286,-479.15861223,0.00021917,3]
[372210925,1752551447295,-466.57782817,0.00021917,3]
[372210927,1752551447305,-463.2800208,0.00021917,3]
[372210929,1752551447314,-460.0,0.00021917,3]
[372210931,1752551447324,-460.0,0.00021917,3]
[372210933,1752551447334,-460.0,0.00021917,3]
[372210935,1752551447343,-460.0,0.00021917,3]
[372210937,1752551447353,-460.0,0.00021917,3]
[372210939,1752551447364,-460.0,0.00021917,3]
[372210941,1752551447373,-207.72306818,0.00021917,3]
[372210943,1752551447383,-460.0,0.00021917,3]
[372210945,1752551447393,-156.27907972,0.00021917,3]
[372210947,1752551447402,-263.498488,0.00021917,2]
[372210949,1752551447412,-460.0,0.00021917,3]
[372210951,1752551447422,-460.0,0.00021917,3]
[372210953,1752551447433,-467.65481292,0.00021917,3]
[372210955,1752551447442,-460.0,0.00021917,3]
[372210957,1752551447451,-460.0,0.00021917,3]
[372210959,1752551447461,-151.0,0.00021917,2]
[372210961,1752551447470,-151.0,0.00021917,2]
[372210963,1752551447479,-460.0,0.00021917,3]
[372210965,1752551447489,-151.0,0.00021917,2]
[372210967,1752551447498,-151.0,0.00021917,2]
[372210970,1752551447507,-151.0,0.00021917,2]
[372210972,1752551447517,-523.26108728,0.00021917,3]
[372210974,1752551447529,-198.24208927,0.00021917,3]
[372210976,1752551447542,-261.75791073,0.00021917,3]
[372210978,1752551447551,-460.0,0.00021917,3]
[372210980,1752551447561,-460.0,0.00021917,3]
[372210982,1752551447571,-460.0,0.00021917,3]
[372210984,1752551447580,-460.0,0.00021917,3]
[372210986,1752551447589,-460.0,0.00021917,3]
[372210988,1752551447599,-460.0,0.00021917,3]
[372210990,1752551447608,-461.12410926,0.00021917,3]
[372210992,1752551447617,-460.79798411,0.00021917,3]
[372210994,1752551447626,-460.0,0.00021917,3]
[372210996,1752551447635,-501.82861809,0.00021917,3]
[372210998,1752551447645,-462.3023024,0.00021917,3]
[372211000,1752551447654,-460.0,0.00021917,3]
[372211002,1752551447663,-22.1890754,0.00021917,2]
[372213413,1752552356140,-265.30012715,0.00019816,2]
[372213418,1752552432333,159.411348,0.00013699,2]
[372213419,1752552435074,-300.0,0.00019816,2]
[372213420,1752552435096,-500.0,0.00019817,2]
[372213421,1752552435116,-500.0,0.00019817,2]
[372213422,1752552435137,-35.18443987,0.00019817,2]
[372213423,1752552446090,-464.81556013,0.00019817,2]
[372213424,1752552446119,-500.0,0.00019817,2]
[372213425,1752552446142,-51.07898971,0.00019817,2]
[372213426,1752552447200,-448.92101029,0.00019817,2]
[372213427,1752552447221,-238.46987202,0.00019817,2]
[372213429,1752552554085,-120.63991626,0.00019817,2]
[372213430,1752552554111,-787.81662808,0.00019817,2]
[372213595,1752552639074,-642.01064896,0.000189,2]
[372213597,1752552639084,-465.80044736,0.00019178,2]
[372213599,1752552639095,-178.35506,0.0002016,15]
[372213601,1752552639105,-366.9025334,0.00020395,2]
[372213603,1752552639114,-166.0,0.00020415,2]
[372213605,1752552639123,-207.75179,0.00020429,2]
[372213607,1752552639132,-180.73892112,0.00020472,2]
[372213610,1752552639143,-116.69102708,0.00020472,2]
[372213612,1752552639152,-200.44584543,0.00020987,2]
[372213614,1752552639164,-6.95415457,0.00020987,2]
[372213616,1752552639174,-300.0,0.00020999,2]
[372213618,1752552639183,-196.5436704,0.00021,2]
[372213620,1752552639193,-2785.2424915,0.00021,2]
[372213633,1752552639295,-436.69992141,0.00021,2]
[372213635,1752552639311,-1244.89757209,0.00021,2]
[372213637,1752552639321,-153.0,0.000214,2]
[372213639,1752552639330,-153.0,0.000214,2]
[372213641,1752552639340,-153.0,0.000214,2]
[372213643,1752552639349,-44952.1024279,0.00021522,2]
[372213646,1752552639361,-4400.17156147,0.00021522,2]
[372213688,1752552639764,-255.57243791,0.00021522,2]
[372213690,1752552639775,-11515.76468639,0.00021522,2]
[372213692,1752552639785,-165.0,0.000216,3]
[372213694,1752552639795,-165.0,0.000216,4]
[372213696,1752552639804,-165.0,0.000216,3]
[372213699,1752552639814,-165.0,0.000216,2]
[372213701,1752552639824,-793.36,0.00021612,10]
[372213704,1752552639833,-1207.49,0.00021612,3]
[372213706,1752552639843,-46168.34697353,0.00021622,2]
[372213708,1752552639854,-31916.9376986,0.00021622,2]
[372213710,1752552639865,-864.76944123,0.00021622,2]
[372213712,1752552639877,-71049.94588664,0.00021622,2]
[372213714,1752552639887,-3548.70343077,0.00021722,2]
[372213716,1752552639897,-5384.58200751,0.00021722,2]
[372214182,1752552645538,-141066.71456172,0.00021722,2]
[372214184,1752552645548,-525.51022752,0.00021798,2]
[372214186,1752552645557,-307.11970683,0.000218,10]
[372214188,1752552645567,-151.0,0.00021804,2]
[372214190,1752552645576,-151.0,0.00021804,2]
[372214192,1752552645586,-151.0,0.00021804,2]
[372214194,1752552645599,-282.0,0.00021804,2]
[372214196,1752552645609,-767.77,0.00021812,10]
[372214198,1752552645622,-2043.81,0.00021816,2]
[372214200,1752552645632,-168.464,0.00021816,2]
[372214202,1752552645641,-38251.68598078,0.00021817,2]
[372214204,1752552645650,-533.87159318,0.00021817,2]
[372214206,1752552645661,-500.0,0.00021821,2]
[372214208,1752552645670,-303.35417867,0.00021821,2]
[372214210,1752552645680,-48096.6997513,0.00021822,2]
[372214221,1752552645771,-3851.69697463,0.00021822,2]
[372214223,1752552645783,-2500.95661912,0.00021822,2]
[372214306,1752552646627,-472.95933375,0.00021822,2]
[372214866,1752552653479,-210.8,0.00019708,3]
[372214868,1752552653489,-210.8,0.00020205,4]
[372214870,1752552653498,-210.8,0.00020702,4]
[372214872,1752552653508,-210.8,0.000212,4]
[372214874,1752552653518,-195.92029764,0.00021621,2]
[372214876,1752552653528,-210.8,0.00021697,5]
[372214878,1752552653537,-1295.44,0.00021812,10]
[372214881,1752552653547,-673.48,0.00021812,3]
[372214884,1752552653557,-95077.6873212,0.00021822,2]
[372214886,1752552653567,-150000.0,0.00021822,2]
[372214888,1752552653577,-160.0,0.00021883,3]
[372214890,1752552653587,-838.84061749,0.00021888,2]
[372214892,1752552653597,-500.0,0.000219,3]
[372214894,1752552653608,-2714.23219276,0.000219,2]
[372214896,1752552653618,-815.77640494,0.000219,6]
[372214898,1752552653630,-1001.736057,0.000219,2]
[372214900,1752552653640,-152.103888,0.00021914,15]
[372214902,1752552653649,-2027.78868575,0.00021917,2]
[372214904,1752552653658,-504.53397429,0.00021917,2]
[372214906,1752552653667,-460.0,0.00021917,3]
[372214908,1752552653678,-460.0,0.00021917,3]
[372214909,1752552653687,-460.0,0.00021917,3]
[372214911,1752552653697,-462.71932507,0.00021917,3]
[372214913,1752552653708,-170.080567,0.00021917,8]
[372214915,1752552653718,-460.0,0.00021917,3]
[372214917,1752552653727,-462.82370838,0.00021917,3]
[372214919,1752552653737,-463.82141936,0.00021917,3]
[372214921,1752552653747,-500.0,0.00021917,3]
[372214923,1752552653756,-520.28874856,0.00021917,3]
[372214925,1752552653766,-469.39960132,0.00021917,3]
[372214927,1752552653775,-460.0,0.00021917,3]
[372214929,1752552653784,-464.75292804,0.00021917,3]
[372214931,1752552653793,-455.35306929,0.00021917,3]
[372214933,1752552653803,-473.74141964,0.00021917,3]
[372214934,1752552653811,-462.92167506,0.00021917,3]
[372214936,1752552653821,-460.0,0.00021917,3]
[372214938,1752552653831,-460.0,0.00021917,3]
[372214940,1752552653840,-460.0,0.00021917,3]
[372214942,1752552653850,-460.0,0.00021917,3]
[372214944,1752552653862,-460.0,0.00021917,3]
[372214946,1752552653872,-460.0,0.00021917,3]
[372214948,1752552653882,-460.0,0.00021917,3]
[372214950,1752552653891,-460.0,0.00021917,3]
[372214952,1752552653901,-460.0,0.00021917,3]
[372214954,1752552653911,-460.0,0.00021917,3]
[372214957,1752552653921,-468.80909873,0.00021917,3]
[372214958,1752552653930,-462.2672064,0.00021917,3]
[372214960,1752552653939,-464.48636648,0.00021917,3]
[372214962,1752552653949,-464.23440814,0.00021917,3]
[372214964,1752552653959,-466.20701381,0.00021917,3]
[372214966,1752552653968,-464.79784972,0.00021917,3]
[372214968,1752552653978,-478.43,0.00021917,3]
[372214970,1752552653987,-460.0,0.00021917,3]
[372214972,1752552653997,-463.67198864,0.00021917,3]
[372214974,1752552654006,-461.50048412,0.00021917,3]
[372214976,1752552654015,-460.0,0.00021917,3]
[372214978,1752552654025,-460.0,0.00021917,3]
[372214980,1752552654034,-460.0,0.00021917,3]
[372214982,1752552654043,-460.0,0.00021917,3]
[372214984,1752552654053,-460.0,0.00021917,3]
[372214985,1752552654062,-1015.13477127,0.00021917,3]
[372214987,1752552654072,-460.0,0.00021917,3]
[372214989,1752552654081,-460.0,0.00021917,3]
[372214991,1752552654090,-460.0,0.00021917,3]
[372214993,1752552654099,-517.46,0.00021917,3]
[372214995,1752552654112,-460.0,0.00021917,3]
[372214997,1752552654122,-460.0,0.00021917,3]
[372214999,1752552654131,-401.04470229,0.00021917,3]
[372215001,1752552654141,-460.0,0.00021917,3]
[372215003,1752552654150,-460.0,0.00021917,3]
[372215005,1752552654160,-464.10421493,0.00021917,3]
[372215007,1752552654169,-460.0,0.00021917,3]
[372215009,1752552654178,-583.45920605,0.00021917,3]
[372215010,1752552654188,-460.0,0.00021917,3]
[372215011,1752552654197,-460.0,0.00021917,3]
[372215012,1752552654207,-462.90114718,0.00021917,3]
[372215013,1752552654216,-463.4496975,0.00021917,3]
[372215014,1752552654226,-467.24358313,0.00021917,3]
[372215015,1752552654236,-461.4177261,0.00021917,3]
[372215016,1752552654245,-464.15842777,0.00021917,3]
[372215017,1752552654255,-191.01724433,0.00021917,3]
[372215018,1752552654264,-469.19589797,0.00021917,3]
[372215019,1752552654274,-464.93120888,0.00021917,3]
[372215020,1752552654283,-154.39640782,0.00021917,3]
[372215021,1752552654294,-468.19292275,0.00021917,3]
[372215022,1752552654303,-460.0,0.00021917,3]
[372215023,1752552654313,-460.0,0.00021917,3]
[372215024,1752552654322,-471.49097598,0.00021917,3]
[372215025,1752552654331,-460.0,0.00021917,3]
[372215026,1752552654341,-302.23559407,0.00021917,3]
[372215027,1752552654350,-564.01599346,0.00021917,3]
[372215028,1752552654362,-460.0,0.00021917,3]
[372215029,1752552654373,-460.0,0.00021917,3]
[372215030,1752552654382,-460.0,0.00021917,3]
[372215031,1752552654391,-469.69068942,0.00021917,3]
[372215032,1752552654401,-460.0,0.00021917,3]
[372215033,1752552654410,-460.0,0.00021917,3]
[372215034,1752552654419,-460.0,0.00021917,3]
[372215035,1752552654428,-460.0,0.00021917,3]
[372215036,1752552654437,-460.0,0.00021917,3]
[372215037,1752552654447,-460.0,0.00021917,3]
[372215038,1752552654456,-460.0,0.00021917,3]
[372215039,1752552654465,-151.0,0.00021917,2]
[372215040,1752552654475,-151.0,0.00021917,2]
[372215041,1752552654485,-460.0,0.00021917,3]
[372215042,1752552654495,-461.03221637,0.00021917,3]
[372215043,1752552654504,-151.0,0.00021917,2]
[372215045,1752552654514,-239.328138,0.00021917,2]
[372215046,1752552654524,-462.53713076,0.00021917,3]
[372215048,1752552654533,-460.0,0.00021917,3]
[372215050,1752552654543,-463.11317575,0.00021917,3]
[372215052,1752552654553,-412.65097454,0.00021917,3]
[372215054,1752552654562,-460.0,0.00021917,3]
[372215056,1752552654571,-460.0,0.00021917,3]
[372215058,1752552654581,-460.0,0.00021917,3]
[372215060,1752552654590,-460.0,0.00021917,3]
[372215062,1752552654599,-460.0,0.00021917,3]
[372215064,1752552654612,-460.0,0.00021917,3]
[372215066,1752552654623,-576.57,0.00021917,3]
[372215069,1752552654635,-460.0,0.00021917,3]
[372215071,1752552654644,-460.0,0.00021917,3]
[372215073,1752552654654,-460.0,0.00021917,3]
[372215075,1752552654663,-370.00515236,0.00021917,3]
[372215076,1752552654673,-464.09468327,0.00021917,3]
[372215078,1752552654682,-460.0,0.00021917,3]
[372215080,1752552654691,-152.225238,0.00021917,2]
[372215082,1752552654702,-460.0,0.00021917,3]
[372215084,1752552654711,-460.0,0.00021917,3]
[372215086,1752552654721,-151.0,0.00021917,2]
[372215089,1752552654739,-151.909562,0.00021917,2]
[372215091,1752552654753,-460.0,0.00021917,3]
[372215093,1752552654762,-460.0,0.00021917,3]
[372215096,1752552654772,-460.0,0.00021917,3]
[372215098,1752552654782,-460.0,0.00021917,3]
[372215100,1752552654792,-460.0,0.00021917,3]
[372215102,1752552654801,-460.0,0.00021917,3]
[372215103,1752552654811,-579.59384032,0.00021917,3]
[372215106,1752552654821,-460.46563828,0.00021917,3]
[372215107,1752552654830,-460.0,0.00021917,2]
[372215109,1752552654840,-460.0,0.00021917,3]
[372215112,1752552654850,-460.0,0.00021917,3]
[372215113,1752552654864,-460.0,0.00021917,3]
[372215116,1752552654874,-460.0,0.00021917,3]
[372215118,1752552654884,-460.0,0.00021917,3]
[372215119,1752552654893,-460.0,0.00021917,3]
[372215122,1752552654903,-460.0,0.00021917,3]
[372215124,1752552654913,-460.0,0.00021917,3]
[372215125,1752552654923,-460.89597521,0.00021917,3]
[372215128,1752552654933,-460.0,0.00021917,3]
[372215130,1752552654944,-462.36555661,0.00021917,3]
[372215132,1752552654954,-460.0,0.00021917,3]
[372215134,1752552654964,-460.0,0.00021917,3]
[372215136,1752552654973,-460.0,0.00021917,3]
[372215138,1752552654983,-460.0,0.00021917,3]
[372215140,1752552654992,-565.22675693,0.00021917,3]
[372215142,1752552655002,-460.0,0.00021917,3]
[372215144,1752552655011,-460.0,0.00021917,3]
[372215146,1752552655021,-460.0,0.00021917,3]
[372215148,1752552655030,-460.0,0.00021917,3]
[372215150,1752552655040,-460.0,0.00021917,3]
[372215152,1752552655049,-460.0,0.00021917,3]
[372215154,1752552655060,-460.0,0.00021917,3]
[372215156,1752552655070,-460.0,0.00021917,3]
[372215158,1752552655079,-460.0,0.00021917,3]
[372215160,1752552655090,-460.0,0.00021917,3]
[372215162,1752552655099,-500.0,0.00021917,3]
[372215164,1752552655114,-500.0,0.00021917,3]
[372215166,1752552655123,-500.0,0.00021917,3]
[372215168,1752552655134,-587.62302464,0.00021917,3]
[372215170,1752552655144,-500.0,0.00021917,3]
[372215172,1752552655154,-500.0,0.00021917,3]
[372215174,1752552655164,-500.0,0.00021917,3]
[372215176,1752552655174,-500.0,0.00021917,3]
[372215178,1752552655184,-500.0,0.00021917,3]
[372215180,1752552655193,-301.60398194,0.00021917,3]
[372215182,1752552655202,-151.0,0.00021917,2]
[372215184,1752552655212,-151.0,0.00021917,2]
[372215186,1752552655222,-460.0,0.00021917,3]
[372215188,1752552655232,-460.0,0.00021917,3]
[372215190,1752552655241,-460.0,0.00021917,3]
[372215191,1752552655251,-460.95713127,0.00021917,3]
[372215193,1752552655260,-460.0,0.00021917,3]
[372215195,1752552655269,-460.0,0.00021917,3]
[372215197,1752552655279,-463.08784742,0.00021917,3]
[372215199,1752552655289,-460.0,0.00021917,3]
[372215201,1752552655299,-777.72,0.00021917,3]
[372215203,1752552655309,-590.29488476,0.00021917,3]
[372215205,1752552655320,-460.0,0.00021917,3]
[372215206,1752552655330,-460.0,0.00021917,3]
[372215208,1752552655341,-460.67616531,0.00021917,3]
[372215210,1752552655358,-460.0,0.00021917,3]
[372215212,1752552655368,-517.86457051,0.00021917,3]
[372215214,1752552655378,-461.93578747,0.00021917,3]
[372215217,1752552655388,-460.0,0.00021917,3]
[372215219,1752552655398,-460.0,0.00021917,3]
[372215220,1752552655408,-460.0,0.00021917,3]
[372215223,1752552655418,-460.0,0.00021917,3]
[372215225,1752552655429,-460.0,0.00021917,3]
[372215227,1752552655439,-460.0,0.00021917,3]
[372215229,1752552655449,-462.32835616,0.00021917,3]
[372215230,1752552655459,-460.0,0.00021917,3]
[372215232,1752552655469,-460.0,0.00021917,3]
[372215234,1752552655479,-460.0,0.00021917,3]
[372215236,1752552655489,-250.57475707,0.00021917,3]
[372215238,1752552655499,-460.0,0.00021917,3]
[372215240,1752552655509,-460.0,0.00021917,3]
[372215247,1752552655673,-460.0,0.00021917,3]
[372215249,1752552655684,-287.76531157,0.00021917,3]
[372215251,1752552655693,-460.0,0.00021917,3]
[372215253,1752552655703,-460.0,0.00021917,3]
[372215255,1752552655713,-460.0,0.00021917,3]
[372215257,1752552655723,-462.78922694,0.00021917,3]
[372215259,1752552655733,-460.0,0.00021917,3]
[372215261,1752552655745,-460.0,0.00021917,3]
[372215263,1752552655755,-471.6876449,0.00021917,3]
[372215265,1752552655765,-460.0,0.00021917,3]
[372215267,1752552655774,-460.0,0.00021917,3]
[372215269,1752552655783,-460.0,0.00021917,3]
[372215271,1752552655793,-376.24303439,0.00021917,3]
[372215273,1752552655803,-791.55,0.00021917,3]
[372215275,1752552655813,-460.44920559,0.00021917,3]
[372215277,1752552655823,-460.0,0.00021917,3]
[372215279,1752552655833,-460.0,0.00021917,3]
[372215281,1752552655843,-460.0,0.00021917,3]
[372215283,1752552655852,-460.0,0.00021917,3]
[372215285,1752552655865,-460.0,0.00021917,3]
[372215288,1752552655875,-460.0,0.00021917,3]
[372215290,1752552655884,-460.0,0.00021917,3]
[372215292,1752552655893,-460.0,0.00021917,3]
[372215294,1752552655903,-151.0,0.00021917,2]
[372215296,1752552655912,-151.0,0.00021917,2]
[372215298,1752552655921,-460.0,0.00021917,3]
[372215300,1752552655931,-460.0,0.00021917,3]
[372215302,1752552655940,-460.0,0.00021917,3]
[372215304,1752552655950,-151.0,0.00021917,2]
[372215306,1752552655960,-151.0,0.00021917,2]
[372215308,1752552655969,-460.0,0.00021917,3]
[372215310,1752552655978,-460.0,0.00021917,3]
[372215312,1752552655988,-467.43794708,0.00021917,3]
[372215314,1752552655997,-460.0,0.00021917,3]
[372215316,1752552656007,-460.0,0.00021917,3]
[372215318,1752552656017,-460.0,0.00021917,3]
[372215320,1752552656026,-465.27115641,0.00021917,3]
[372215322,1752552656035,-460.0,0.00021917,3]
[372215324,1752552656045,-460.0,0.00021917,3]
[372215326,1752552656054,-460.0,0.00021917,3]
[372215328,1752552656064,-460.0,0.00021917,3]
[372215330,1752552656073,-460.0,0.00021917,3]
[372215332,1752552656082,-464.58615465,0.00021917,3]
[372215334,1752552656091,-460.0,0.00021917,3]
[372215336,1752552656101,-151.0,0.00021917,2]
[372215338,1752552656113,-151.0,0.00021917,2]
[372215340,1752552656122,-460.0,0.00021917,3]
[372215342,1752552656131,-460.0,0.00021917,3]
[372215344,1752552656141,-460.0,0.00021917,3]
[372215346,1752552656151,-460.0,0.00021917,3]
[372215348,1752552656160,-460.0,0.00021917,3]
[372215350,1752552656169,-441.36906242,0.00021917,3]
[372215352,1752552656179,-462.36756959,0.00021917,3]
[372215354,1752552656189,-460.0,0.00021917,3]
[372215356,1752552656198,-460.0,0.00021917,3]
[372215358,1752552656207,-460.0,0.00021917,3]
[372215360,1752552656216,-461.78853965,0.00021917,3]
[372215362,1752552656225,-502.94281649,0.00021917,3]
[372215364,1752552656236,-461.74376058,0.00021917,3]
[372215366,1752552656246,-460.0,0.00021917,3]
[372215368,1752552656255,-519.47,0.00021917,3]
[372215370,1752552656264,-460.0,0.00021917,3]
[372215372,1752552656274,-580.70053603,0.00021917,3]
[372215374,1752552656284,-460.0,0.00021917,3]
[372215376,1752552656295,-4953.31,0.00021917,3]
[372215378,1752552656304,-462.85288859,0.00021917,3]
[372215380,1752552656314,-775.92,0.00021917,3]
[372215382,1752552656324,-460.0,0.00021917,3]
[372215384,1752552656334,-460.0,0.00021917,3]
[372215387,1752552656344,-1271.11,0.00021917,3]
[372215389,1752552656353,-357.26382968,0.00021917,3]
[372215391,1752552656369,-638.92118897,0.00021917,3]
[372215393,1752552656378,-151.0,0.00021917,2]
[372215395,1752552656388,-151.0,0.00021917,2]
[372215397,1752552656398,-151.0,0.00021917,2]
[372215399,1752552656407,-151.0,0.00021917,2]
[372215401,1752552656416,-151.0,0.00021917,2]
[372215403,1752552656426,-151.0,0.00021917,2]
[372215405,1752552656435,-460.0,0.00021917,3]
[372215407,1752552656445,-460.0,0.00021917,3]
[372215409,1752552656455,-460.0,0.00021917,3]
[372215411,1752552656464,-461.94570617,0.00021917,3]
[372215413,1752552656474,-1235.2,0.00021917,3]
[372215415,1752552656483,-726.27,0.00021917,3]
[372215417,1752552656493,-671.4,0.00021917,3]
[372215419,1752552656502,-465.13418068,0.00021917,3]
[372215421,1752552656512,-799.6,0.00021917,3]
[372215423,1752552656521,-2030.22,0.00021917,3]
[372215425,1752552656531,-463.73422717,0.00021917,3]
[372215427,1752552656541,-591.12583341,0.00021917,3]
[372215429,1752552656550,-460.0,0.00021917,3]
[372215431,1752552656559,-460.0,0.00021917,3]
[372215433,1752552656570,-151.0,0.00021917,2]
[372215435,1752552656580,-460.0,0.00021917,3]
[372215437,1752552656590,-151.0,0.00021917,2]
[372215439,1752552656599,-151.0,0.00021917,2]
[372215441,1752552656613,-151.0,0.00021917,2]
[372215444,1752552656623,-151.0,0.00021917,2]
[372215446,1752552656635,-714.23,0.00021917,3]
[372215447,1752552656644,-461.95414846,0.00021917,3]
[372215450,1752552656653,-460.0,0.00021917,3]
[372215452,1752552656663,-1996.77,0.00021917,3]
[372215454,1752552656673,-151.0,0.00021917,2]
[372215456,1752552656683,-460.0,0.00021917,3]
[372215458,1752552656691,-151.0,0.00021917,2]
[372215460,1752552656701,-151.0,0.00021917,2]
[372215462,1752552656712,-460.0,0.00021917,3]
[372215464,1752552656721,-460.0,0.00021917,3]
[372215466,1752552656730,-460.0,0.00021917,3]
[372215468,1752552656740,-460.0,0.00021917,3]
[372215470,1752552656750,-800.07,0.00021917,3]
[372215472,1752552656759,-460.0,0.00021917,3]
[372215474,1752552656769,-151.0,0.00021917,2]
[372215476,1752552656779,-3111.48,0.00021917,3]
[372215478,1752552656788,-584.30089158,0.00021917,3]
[372215480,1752552656798,-460.0,0.00021917,3]
[372215482,1752552656807,-151.0,0.00021917,2]
[372215484,1752552656817,-460.0,0.00021917,3]
[372215486,1752552656829,-151.0,0.00021917,2]
[372215488,1752552656839,-151.0,0.00021917,2]
[372215490,1752552656848,-151.0,0.00021917,2]
[372215492,1752552656859,-1667.58,0.00021917,3]
[372215494,1752552656869,-647.74,0.00021917,3]
[372215496,1752552656879,-460.0,0.00021917,3]
[372215498,1752552656888,-555.09277964,0.00021917,3]
[372215500,1752552656898,-151.0,0.00021917,2]
[372215502,1752552656907,-460.0,0.00021917,3]
[372215504,1752552656917,-151.0,0.00021917,2]
[372215506,1752552656926,-151.0,0.00021917,2]
[372215509,1752552656936,-408.98973444,0.00021917,3]
[372215511,1752552656946,-460.0,0.00021917,3]
[372215513,1752552656955,-460.0,0.00021917,3]
[372215515,1752552656965,-468.35187788,0.00021917,3]
[372215517,1752552656975,-461.39501885,0.00021917,3]
[372215519,1752552656985,-460.0,0.00021917,3]
[372215521,1752552656994,-460.0,0.00021917,3]
[372215523,1752552657004,-460.0,0.00021917,3]
[372215525,1752552657013,-419.82431822,0.00021917,3]
[372215527,1752552657023,-313.74040944,0.00021917,3]
[372215529,1752552657032,-460.0,0.00021917,3]
[372215531,1752552657042,-489.91129485,0.00021917,3]
[372215533,1752552657051,-460.0,0.00021917,3]
[372215535,1752552657060,-460.0,0.00021917,3]
[372215537,1752552657069,-697.18,0.00021917,3]
[372215539,1752552657078,-460.0,0.00021917,3]
[372215541,1752552657087,-527.96,0.00021917,3]
[372215543,1752552657096,-971.98,0.00021917,3]
[372215545,1752552657105,-462.37227873,0.00021917,3]
[372215546,1752552657115,-461.0044925,0.00021917,3]
[372215549,1752552657125,-151.0,0.00021917,2]
[372215551,1752552657135,-151.0,0.00021917,2]
[372215553,1752552657144,-151.0,0.00021917,2]
[372215555,1752552657153,-463.03956493,0.00021917,3]
[372215557,1752552657163,-460.0,0.00021917,3]
[372215559,1752552657173,-460.0,0.00021917,3]
[372215561,1752552657182,-460.0,0.00021917,3]
[372215562,1752552657191,-464.38634809,0.00021917,3]
[372215565,1752552657201,-532.76,0.00021917,3]
[372215566,1752552657210,-460.0,0.00021917,3]
[372215569,1752552657219,-460.0,0.00021917,3]
[372215571,1752552657229,-460.0,0.00021917,3]
[372215573,1752552657238,-465.82633852,0.00021917,3]
[372215575,1752552657248,-567.58,0.00021917,3]
[372215577,1752552657257,-2796.67,0.00021917,3]
[372215579,1752552657266,-460.0,0.00021917,3]
[372215581,1752552657275,-597.24,0.00021917,3]
[372215583,1752552657285,-460.0,0.00021917,3]
[372215585,1752552657294,-151.0,0.00021917,2]
[372215587,1752552657303,-151.0,0.00021917,2]
[372215589,1752552657312,-151.0,0.00021917,2]
[372215591,1752552657321,-460.0,0.00021917,3]
[372215593,1752552657330,-460.0,0.00021917,3]
[372215595,1752552657339,-550.6,0.00021917,3]
[372215597,1752552657348,-151.0,0.00021917,2]
[372215598,1752552657360,-1302.93,0.00021917,3]